fUST/lending_fUST_20251230
["ID","MTS","AMOUNT","RATE_DAILY","PERIOD"]
[400081542,1767075048955,-151.0,0.000249,7]
[400081543,1767075048964,-151.0,0.000249,7]
[400081544,1767075048974,-151.0,0.000249,7]
[400081545,1767075048983,-151.0,0.000249,7]
[400081546,1767075048992,-893.168983,0.000249,7]
[400081547,1767075049001,-893.168983,0.000249,7]
[400081548,1767075049011,-893.168983,0.000249,7]
[400081549,1767075049020,-893.168983,0.000249,7]
[400081550,1767075049029,-151.0,0.000249,7]
[400081551,1767075049039,-151.0,0.000249,7]
[400081552,1767075049048,-151.0,0.000249,7]
[400081553,1767075049057,-151.0,0.000249,7]
[400081554,1767075049066,-203.497062,0.000249,7]
[400081555,1767075049076,-238.1177,0.000249,7]
[400081556,1767075049085,-238.1177,0.000249,7]
[400081557,1767075049094,-238.1177,0.000249,7]
[400081558,1767075049104,-238.1177,0.000249,7]
[400081559,1767075049113,-151.0,0.000249,7]
[400081560,1767075049123,-151.0,0.000249,7]
[400081561,1767075049133,-151.0,0.000249,7]
[400081562,1767075049143,-151.0,0.000249,7]
[400081563,1767075049152,-161.798932,0.000249,7]
[400081564,1767075049162,-151.0,0.000249,7]
[400081565,1767075049171,-151.0,0.000249,7]
[400081566,1767075049181,-151.0,0.000249,7]
[400081567,1767075049190,-151.0,0.000249,7]
[400081568,1767075049200,-151.533477,0.000249,7]
[400081569,1767075049210,-500.15351,0.000249,7]
[400081570,1767075049219,-500.15351,0.000249,7]
[400081571,1767075049228,-500.15351,0.000249,7]
[400081572,1767075049238,-500.15351,0.000249,7]
[400081573,1767075049249,-500.0,0.00024931,2]
[400081574,1767075049258,-200.0,0.00024931,2]
[400081575,1767075049268,-1406.3,0.00024931,2]
[400081576,1767075049277,-500.0,0.00024931,2]
[400081577,1767075049286,-500.0,0.00024931,2]
[400081578,1767075049296,-188.62587961,0.00024931,2]
[400081579,1767075049306,-853.53,0.00024991,30]
[400081580,1767075049315,-700.0,0.00025057,7]
[400081581,1767075049324,-500.0,0.00025205,2]
[400081582,1767075049334,-200.0,0.00025205,2]
[400081583,1767075049343,-1406.3,0.00025205,2]
[400081584,1767075049352,-500.0,0.00025205,2]
[400081585,1767075049362,-500.0,0.00025205,2]
[400081586,1767075049371,-2160.0,0.00025288,2]
[400081587,1767075049380,-167.63,0.000253,7]
[400081588,1767075049389,-163.05,0.000253,7]
[400081589,1767075049468,-166.34,0.000253,7]
[400081590,1767075049477,-293.444273,0.00025342,2]
[400081591,1767075049487,-1000.0,0.00025382,10]
[400081592,1767075049496,-1000.0,0.00025382,10]
[400081593,1767075049505,-1409.93,0.000254,14]
[400081594,1767075049515,-350.6822047,0.00025424,15]
[400081595,1767075049524,-500.0,0.00025479,2]
[400081596,1767075049533,-200.0,0.00025479,2]
[400081597,1767075049543,-1406.3,0.00025479,2]
[400081598,1767075049552,-500.0,0.00025479,2]
[400081599,1767075049561,-500.0,0.00025479,2]
[400081600,1767075049571,-567.81,0.000255,7]
[400081601,1767075049580,-700.0,0.00025543,7]
[400081602,1767075049590,-404.0,0.00025654,2]
[400081603,1767075049599,-500.0,0.00025655,7]
[400081604,1767075049608,-500.0,0.00025753,2]
[400081605,1767075049617,-311.3580163,0.00025753,2]
[400081606,1767075049627,-1406.3,0.00025753,2]
[400081607,1767075049636,-500.0,0.00025753,2]
[400081608,1767075049646,-576.92380782,0.00025753,2]
[400081609,1767075049655,-370.65,0.000258,2]
[400081610,1767075049666,-700.0,0.00025832,7]
[400081611,1767075049676,-2260.0,0.00025836,2]
[400081612,1767075049685,-500.0,0.00025948,7]
[400081613,1767075049695,-1024.23,0.0002599,30]
[400081614,1767075049705,-500.0,0.00026027,2]
[400081615,1767075049714,-1406.3,0.00026027,2]
[400081616,1767075049723,-500.0,0.00026027,2]
[400081617,1767075049733,-285.75153938,0.00026301,2]
[400081618,1767075049744,-1406.3,0.00026301,2]
[400081619,1767075049754,-285.40536442,0.00026301,2]
[400081620,1767075049763,-1780.0,0.00026384,2]
[400081621,1767075049772,-700.0,0.00026512,7]
[400081622,1767075049781,-1406.3,0.00026575,2]
[400081623,1767075049791,-9961.44,0.000266,2]
[400081624,1767075049799,-350.6822047,0.00026654,16]
[400081625,1767075049808,-552.30609109,0.00026721,2]
[400081626,1767075049818,-668.39868106,0.00026836,2]
[400081627,1767075049827,-1406.3,0.00026849,2]
[400081628,1767075049837,-1194.94,0.0002699,30]
[400081629,1767075049847,-1406.3,0.00027123,2]
[400081630,1767075049856,-404.0,0.00027159,2]
[400081631,1767075049865,-1082.0,0.00027312,2]
[400081632,1767075049874,-158.086969,0.00027312,7]
[400081633,1767075049883,-151.0,0.00027312,7]
[400081634,1767075049892,-151.0,0.00027312,7]
[400081635,1767075049901,-153.033305,0.00027312,7]
[400081636,1767075049910,-1406.3,0.00027397,2]
[400081637,1767075049920,-300.0,0.00027397,2]
[400081638,1767075049929,-300.0,0.00027397,2]
[400081639,1767075049938,-300.0,0.00027397,2]
[400081640,1767075049947,-300.0,0.00027397,2]
[400081641,1767075049956,-300.0,0.00027397,2]
[400081642,1767075049965,-300.0,0.00027397,2]
[400081643,1767075049974,-300.0,0.00027397,2]
[400081644,1767075049983,-300.0,0.00027397,2]
[400081645,1767075049992,-300.0,0.00027397,2]
[400081646,1767075050001,-300.0,0.00027397,2]
[400081647,1767075050011,-300.0,0.00027397,2]
[400081648,1767075050020,-300.0,0.00027397,2]
[400081649,1767075050030,-300.0,0.00027397,2]
[400081650,1767075050039,-300.0,0.00027397,2]
[400081651,1767075050048,-300.0,0.00027397,2]
[400081652,1767075050057,-300.0,0.00027397,2]
[400081653,1767075050067,-300.0,0.00027397,2]
[400081654,1767075050076,-300.0,0.00027397,2]
[400081655,1767075050085,-300.0,0.00027397,2]
[400081656,1767075050094,-300.0,0.00027397,2]
[400081657,1767075050103,-300.0,0.00027397,2]
[400081658,1767075050112,-300.0,0.00027397,2]
[400081659,1767075050121,-300.0,0.00027397,2]
[400081660,1767075050131,-300.0,0.00027397,2]
[400081661,1767075050140,-300.0,0.00027397,2]
[400081662,1767075050149,-300.0,0.00027397,2]
[400081663,1767075050159,-300.0,0.00027397,2]
[400081664,1767075050171,-300.0,0.00027397,2]
[400081665,1767075050187,-300.0,0.00027397,2]
[400081666,1767075050204,-300.0,0.00027397,2]
[400081667,1767075050215,-300.0,0.00027397,2]
[400081668,1767075050231,-300.0,0.00027397,2]
[400081669,1767075050245,-151.0,0.00027397,7]
[400081670,1767075050260,-151.0,0.00027397,7]
[400081671,1767075050275,-500.0,0.00027397,5]
[400081672,1767075050291,-1082.0,0.00027438,2]
[400081673,1767075050304,-700.0,0.00027489,7]
[400081674,1767075050318,-1082.0,0.00027525,2]
[400081675,1767075050331,-1082.0,0.00027625,7]
[400081676,1767075050346,-1082.0,0.00027647,2]
[400081677,1767075050360,-1406.3,0.00027671,2]
[400081678,1767075050370,-500.0,0.00027676,7]
[400081679,1767075050384,-1084.0,0.00027683,2]
[400081680,1767075050399,-167.63,0.000277,7]
[400081681,1767075050412,-163.05,0.000277,7]
[400081682,1767075050427,-1082.0,0.00027772,7]
[400081683,1767075050441,-1084.0,0.00027806,2]
[400081684,1767075050456,-700.0,0.0002787,7]
[400081685,1767075050468,-350.6822047,0.00027883,18]
[400081686,1767075050478,-567.81,0.000279,7]
[400081687,1767075050491,-1000.0,0.0002792,30]
[400081688,1767075050506,-1000.0,0.0002792,30]
[400081689,1767075050519,-579.0,0.0002792,30]
[400081690,1767075050532,-1406.3,0.00027945,2]
[400081691,1767075050544,-1000.0,0.00027945,5]
[400081692,1767075050557,-250.0,0.00027945,5]
[400081693,1767075050569,-1365.64,0.00027989,30]
[400081694,1767075050580,-5000.0,0.00027999,15]
[400081695,1767075050593,-177.0,0.00028,27]
[400081696,1767075050604,-1082.0,0.00028062,2]
[400081697,1767075050616,-500.0,0.00028093,7]
[400081698,1767075050628,-700.0,0.00028185,7]
[400081699,1767075050640,-1084.0,0.00028189,7]
[400081700,1767075050653,-1406.3,0.00028219,2]
[400081701,1767075050668,-700.0,0.0002822,7]
[400081702,1767075050680,-700.0,0.00028322,7]
[400081703,1767075050691,-1082.0,0.00028342,2]
[400081704,1767075050703,-1085.0,0.00028347,7]
[400081705,1767075050716,-500.0,0.00028361,7]
[400081706,1767075050727,-5000.0,0.00028398,15]
[400081707,1767075050741,-1341.07728692,0.00028493,5]
[400081708,1767075050752,-350.0,0.00028493,5]
[400081709,1767075050764,-1082.0,0.00028626,2]
[400081710,1767075050776,-404.0,0.00028664,3]
[400081711,1767075050787,-700.0,0.00028705,7]
[400081712,1767075050799,-596.2950718,0.00028721,2]
[400081713,1767075050811,-1082.0,0.0002875,2]
[400081714,1767075050822,-293.444273,0.00028767,60]
[400081715,1767075050834,-665.07279349,0.00028784,2]
[400081716,1767075050846,-154.95,0.000288,2]
[400081717,1767075050858,-1082.0,0.00028803,2]
[400081718,1767075050870,-154.95,0.000289,2]
[400081719,1767075050882,-1536.35,0.00028989,30]
[400081720,1767075050894,-206.01879,0.00029,120]
[400081721,1767075050906,-154.95,0.00029,2]
[400081722,1767075050918,-1082.0,0.00029003,2]
[400081723,1767075050929,-5000.0,0.00029004,15]
[400081724,1767075050941,-700.0,0.00029022,7]
[400081725,1767075050952,-450.0,0.00029041,5]
[400081726,1767075050964,-2000.0,0.0002906,7]
[400081727,1767075050976,-1409.93,0.000291,14]
[400081728,1767075050988,-154.95,0.000291,2]
[400081729,1767075051000,-350.6822047,0.00029112,19]
[400081730,1767075051013,-9961.44,0.000292,2]
[400081731,1767075051025,-154.95,0.000292,2]
[400081732,1767075051037,-1082.0,0.00029237,7]
[400081733,1767075051049,-154.95,0.000293,2]
[400081734,1767075051062,-1082.0,0.00029388,2]
[400081735,1767075051074,-154.95,0.000294,2]
[400081736,1767075051087,-172.96149317,0.00029404,5]
[400081737,1767075051100,-567.81,0.000295,7]
[400081738,1767075051217,-154.95,0.000295,2]
[400081739,1767075051229,-1082.0,0.00029576,7]
[400081740,1767075051239,-169.532124,0.00029588,7]
[400081741,1767075051248,-550.0,0.00029589,5]
[400081742,1767075051258,-167.63,0.000296,7]
[400081743,1767075051267,-15279.0607231,0.000296,2]
[400081744,1767075051276,-154.95,0.000296,2]
[400081745,1767075051286,-12725.54,0.000297,5]
[400081746,1767075051296,-154.95,0.000297,2]
[400081747,1767075051305,-1082.0,0.00029705,7]
[400081748,1767075051315,-1084.0,0.00029725,2]
[400081749,1767075051323,-700.0,0.00029757,7]
[400081750,1767075051332,-151.0,0.000298,7]
[400081751,1767075051342,-151.0,0.000298,7]
[400081752,1767075051350,-151.0,0.000298,7]
[400081753,1767075051359,-154.95,0.000298,2]
[400081754,1767075051368,-151.0,0.000298,7]
[400081755,1767075051377,-1082.0,0.00029817,2]
[400081756,1767075051386,-1082.0,0.00029817,2]
[400081757,1767075051396,-1085.0,0.00029831,2]
[400081758,1767075051405,-154.95,0.000299,2]
[400081759,1767075051414,-700.0,0.00029946,7]
[400081760,1767075051423,-1707.04818745,0.00029989,30]
[400081761,1767075051432,-5000.0,0.00029999,15]
[400081762,1767075051441,-154.95,0.0003,2]
[400081763,1767075051451,-1085.0,0.00030051,2]
[400081764,1767075051460,-2000.0,0.00030055,7]
[400081765,1767075051469,-650.0,0.00030137,5]
[400081766,1767075051479,-404.0,0.00030168,4]
[400081767,1767075051488,-154.95,0.000302,2]
[400081768,1767075051498,-154.95,0.000303,2]
[400081769,1767075051507,-700.0,0.00030338,7]
[400081770,1767075051516,-350.6822047,0.00030342,21]
[400081771,1767075051526,-668.39868106,0.00030377,2]
[400081772,1767075051536,-700.0,0.0003038,7]
[400081773,1767075051545,-154.95,0.000304,2]
[400081774,1767075051554,-160.0,0.00030447,3]
[400081775,1767075051564,-15279.06072301,0.00030473,2]
[400081776,1767075051574,-700.0,0.00030475,7]
[400081777,1767075051583,-500.0,0.00030484,7]
[400081778,1767075051592,-154.95,0.000305,2]
[400081779,1767075051602,-700.0,0.00030526,7]
[400081780,1767075051611,-154.95,0.000306,2]
[400081781,1767075051620,-750.0,0.00030685,5]
[400081782,1767075051630,-256.5,0.00030686,30]
[400081783,1767075051639,-5018.0,0.00030686,30]
[400081784,1767075051648,-5000.0,0.00030708,3]
[400081785,1767075051657,-1000.0,0.00030712,30]
[400081786,1767075051671,-1000.0,0.00030712,30]
[400081787,1767075051680,-1000.0,0.00030712,30]
[400081788,1767075051689,-640.28405251,0.00030721,2]
[400081789,1767075051698,-9961.44,0.000308,2]
[400081790,1767075051709,-500.0,0.00030857,7]
[400081791,1767075051719,-1391.47,0.00030958,30]
[400081792,1767075051728,-173.91029313,0.00031,120]
[400081793,1767075051738,-484.83702936,0.00031,120]
[400081794,1767075051747,-427.1869175,0.00031,120]
[400081795,1767075051756,-197.69549321,0.00031,120]
[400081796,1767075051766,-618.34259549,0.00031,120]
[400081797,1767075051775,-577.41404259,0.00031,120]
[400081798,1767075051785,-201.19436054,0.00031,120]
[400081799,1767075051794,-180.65011172,0.00031,120]
[400081800,1767075051803,-495.16391661,0.00031,120]
[400081801,1767075051812,-167.28493125,0.00031,120]
[400081802,1767075051821,-188.46987423,0.00031,120]
[400081803,1767075051830,-469.51361326,0.00031,120]
[400081804,1767075051839,-541.02927458,0.00031,120]
[400081805,1767075051849,-1157.42344862,0.00031,120]
[400081806,1767075051858,-160.96956782,0.00031,120]
[400081807,1767075051867,-160.0,0.00031003,4]
[400081808,1767075051876,-5000.0,0.00031005,2]
[400081809,1767075051885,-2000.0,0.00031049,7]
[400081810,1767075051894,-1409.93,0.000311,14]
[400081811,1767075051903,-567.81,0.000311,7]
[400081812,1767075051912,-500.0,0.00031188,7]
[400081813,1767075051921,-915.55215583,0.00031233,5]
[400081814,1767075051930,-2219.236,0.0003125,2]
[400081815,1767075051939,-674.459,0.0003125,2]
[400081816,1767075051948,-15279.06072301,0.00031347,2]
[400081817,1767075051958,-700.0,0.00031412,7]
[400081818,1767075051967,-166.34,0.000315,7]
[400081819,1767075051976,-5000.0,0.00031505,15]
[400081820,1767075051986,-1391.47,0.00031506,31]
[400081821,1767075051995,-160.0,0.00031558,5]
[400081822,1767075052005,-350.6822047,0.00031571,22]
[400081823,1767075052015,-404.0,0.00031673,4]
[400081824,1767075052024,-700.0,0.0003168,7]
[400081825,1767075052034,-700.0,0.00031828,7]
[400081826,1767075052043,-484.83702936,0.000319,120]
[400081827,1767075052052,-427.1869175,0.000319,120]
[400081828,1767075052062,-197.69549321,0.000319,120]
[400081829,1767075052071,-618.34259549,0.000319,120]
[400081830,1767075052080,-577.41404259,0.000319,120]
[400081831,1767075052089,-495.16391661,0.000319,120]
[400081832,1767075052099,-188.46987423,0.000319,120]
[400081833,1767075052108,-469.51361326,0.000319,120]
[400081834,1767075052118,-541.02927458,0.000319,120]
[400081835,1767075052128,-1157.42344862,0.000319,120]
[400081836,1767075052138,-2000.01,0.00032,30]
[400081837,1767075052148,-2000.0,0.00032044,7]
[400081838,1767075052157,-5000.0,0.00032053,15]
[400081839,1767075052167,-1391.47,0.00032054,32]
[400081840,1767075052176,-160.0,0.00032114,6]
[400081841,1767075052186,-15279.06072301,0.0003222,2]
[400081842,1767075052196,-900.0,0.00032364,7]
[400081843,1767075052205,-1041.66666667,0.000324,120]
[400081844,1767075052214,-160.0,0.000324,120]
[400081845,1767075052223,-2000.0,0.000324,120]
[400081846,1767075052233,-5000.0,0.00032448,6]
[400081847,1767075052242,-5000.0,0.00032601,15]
[400081848,1767075052252,-1391.47,0.00032602,33]
[400081849,1767075052261,-160.0,0.00032669,7]
[400081850,1767075052271,-684.27303321,0.00032721,2]
[400081851,1767075052280,-350.6822047,0.000328,23]
[400081852,1767075052289,-965.70893362,0.00032876,120]
[400081853,1767075052298,-575.02,0.00032876,2]
[400081854,1767075052307,-575.02,0.00032876,2]
[400081855,1767075052316,-575.02,0.00032876,2]
[400081856,1767075052325,-575.02,0.00032876,2]
[400081857,1767075052335,-575.02,0.00032876,2]
[400081858,1767075052344,-575.02,0.00032876,2]
[400081859,1767075052353,-575.02,0.00032876,2]
[400081860,1767075052363,-575.02,0.00032876,2]
[400081861,1767075052372,-575.02,0.00032876,2]
[400081862,1767075052381,-575.02,0.00032876,2]
[400081863,1767075052390,-575.02,0.00032876,2]
[400081864,1767075052399,-575.02,0.00032876,2]
[400081865,1767075052409,-575.02,0.00032876,2]
[400081866,1767075052419,-575.02,0.00032876,2]
[400081867,1767075052428,-575.02,0.00032876,2]
[400081868,1767075052437,-575.02,0.00032876,2]
[400081869,1767075052447,-575.02,0.00032876,2]
[400081870,1767075052456,-575.02,0.00032876,2]
[400081871,1767075052465,-575.02,0.00032876,2]
[400081872,1767075052474,-575.02,0.00032876,2]
[400081873,1767075052484,-575.02,0.00032876,2]
[400081874,1767075052495,-575.02,0.00032876,2]
[400081875,1767075052504,-575.02,0.00032876,2]
[400081876,1767075052514,-575.2218476,0.00032876,2]
[400081877,1767075052524,-151.0,0.00032876,31]
[400081878,1767075052533,-151.0,0.00032876,31]
[400081879,1767075052543,-151.0,0.00032876,31]
[400081880,1767075052552,-5000.0,0.00032876,15]
[400081881,1767075052562,-233.58774294,0.00032876,2]
[400081882,1767075052571,-1303.9,0.00032877,10]
[400081883,1767075052581,-500.0,0.00032877,5]
[400081884,1767075052590,-484.83702936,0.000329,120]
[400081885,1767075052599,-427.1869175,0.000329,120]
[400081886,1767075052609,-197.69549321,0.000329,120]
[400081887,1767075052618,-618.34259549,0.000329,120]
[400081888,1767075052627,-577.41404259,0.000329,120]
[400081889,1767075052636,-495.16391661,0.000329,120]
[400081890,1767075052646,-188.46987423,0.000329,120]
[400081891,1767075052655,-469.51361326,0.000329,120]
[400081892,1767075052667,-541.02927458,0.000329,120]
[400081893,1767075052676,-1157.42344862,0.000329,120]
[400081894,1767075052686,-1020.0,0.00033,7]
[400081895,1767075052695,-188.0,0.00033,14]
[400081896,1767075052705,-2000.0,0.00033038,7]
[400081897,1767075052714,-15279.06072301,0.00033093,2]
[400081898,1767075052723,-9961.44,0.000331,14]
[400081899,1767075052734,-1993.111595,0.000331,16]
[400081900,1767075052743,-5000.0,0.00033149,15]
[400081901,1767075052753,-1391.47,0.0003315,34]
[400081902,1767075052763,-188.0,0.00033151,30]
[400081903,1767075052772,-404.0,0.00033178,5]
[400081904,1767075052781,-5000.0,0.00033199,15]
[400081905,1767075052790,-1241.1395,0.0003322,30]
[400081906,1767075052799,-160.0,0.00033224,8]
[400081907,1767075052809,-1409.93,0.000333,30]
[400081908,1767075052818,-567.81,0.000333,7]
[400081909,1767075052827,-665.73786629,0.00033385,2]
[400081910,1767075052836,-1000.0,0.00033425,5]
[400081911,1767075052845,-5000.0,0.00033478,15]
[400081912,1767075052855,-160.0,0.00033479,61]
[400081913,1767075052864,-193.282872,0.00033499,30]
[400081914,1767075052874,-193.282872,0.00033499,30]
[400081915,1767075052883,-193.3325444,0.00033499,30]
[400081916,1767075052892,-184.1347424,0.00033507,30]
[400081917,1767075052901,-368.2694848,0.00033507,30]
[400081918,1767075052910,-368.2694848,0.00033507,30]
[400081919,1767075052920,-368.2694848,0.00033507,30]
[400081920,1767075052929,-368.2694848,0.00033507,30]
[400081921,1767075052938,-184.1347424,0.00033507,30]
[400081922,1767075052947,-5153.64504754,0.00033595,2]
[400081923,1767075052957,-1000.0,0.000336,16]
[400081924,1767075052966,-5000.0,0.00033608,8]
[400081925,1767075052976,-500.0,0.0003365,10]
[400081926,1767075052986,-500.0,0.0003365,30]
[400081927,1767075052995,-500.0,0.0003365,30]
[400081928,1767075053004,-500.0,0.0003365,10]
[400081929,1767075053014,-500.0,0.0003365,30]
[400081930,1767075053023,-500.0,0.0003365,10]
[400081931,1767075053033,-5000.0,0.00033697,15]
[400081932,1767075053043,-1391.47,0.00033698,35]
[400081933,1767075053052,-250.0,0.00033699,5]
[400081934,1767075053062,-5000.0,0.00033699,10]
[400081935,1767075053071,-271.56582801,0.00033715,2]
[400081936,1767075053081,-160.0,0.0003378,9]
[400081937,1767075053091,-1000.0,0.00033784,30]
[400081938,1767075053100,-1000.0,0.00033784,30]
[400081939,1767075053110,-1000.0,0.00033784,30]
[400081940,1767075053120,-715.0,0.00033784,30]
[400081941,1767075053130,-1055.258506,0.00033784,28]
[400081942,1767075053140,-1055.258506,0.00033784,28]
[400081943,1767075053233,-1055.258506,0.00033784,28]
[400081944,1767075053245,-1055.258506,0.00033784,28]
[400081945,1767075053255,-484.83702936,0.000339,120]
[400081946,1767075053265,-427.1869175,0.000339,120]
[400081947,1767075053275,-197.69549321,0.000339,120]
[400081948,1767075053284,-618.34259549,0.000339,120]
[400081949,1767075053294,-577.41404259,0.000339,120]
[400081950,1767075053303,-495.16391661,0.000339,120]
[400081951,1767075053312,-188.46987423,0.000339,120]
[400081952,1767075053322,-469.51361326,0.000339,120]
[400081953,1767075053331,-541.02927458,0.000339,120]
[400081954,1767075053341,-1157.42344862,0.000339,120]
[400081955,1767075053351,-668.39868106,0.00033919,2]
[400081956,1767075053360,-15279.06072301,0.00033967,2]
[400081957,1767075053370,-1500.0,0.00033973,5]
[400081958,1767075053380,-5000.0,0.00033999,14]
[400081959,1767075053389,-5000.0,0.00033999,15]
[400081960,1767075053399,-1016.0,0.00034,7]
[400081961,1767075053408,-186.19554048,0.00034,120]
[400081962,1767075053418,-350.6822047,0.00034029,25]
[400081963,1767075053427,-2000.0,0.00034033,7]
[400081964,1767075053436,-1000.0,0.000341,16]
[400081965,1767075053446,-5000.0,0.00034188,9]
[400081966,1767075053455,-295.663,0.000342,30]
[400081967,1767075053465,-295.66,0.000342,30]
[400081968,1767075053474,-5000.0,0.00034245,15]
[400081969,1767075053484,-1391.47,0.00034246,36]
[400081970,1767075053494,-2156.0,0.0003425,2]
[400081971,1767075053503,-627.0,0.0003425,2]
[400081972,1767075053513,-154.3763159,0.00034274,30]
[400081973,1767075053523,-41021.597602,0.00034319,2]
[400081974,1767075053532,-151.0,0.00034319,31]
[400081975,1767075053543,-184.1347424,0.00034329,30]
[400081976,1767075053553,-184.1347424,0.00034329,30]
[400081977,1767075053563,-184.1347424,0.00034329,30]
[400081978,1767075053572,-184.1347424,0.00034329,30]
[400081979,1767075053582,-184.1347424,0.00034329,30]
[400081980,1767075053592,-184.1347424,0.00034329,30]
[400081981,1767075053602,-184.1347424,0.00034329,30]
[400081982,1767075053612,-184.1347424,0.00034329,30]
[400081983,1767075053621,-184.1347424,0.00034329,30]
[400081984,1767075053631,-184.1347424,0.00034329,30]
[400081985,1767075053640,-184.1347424,0.00034329,30]
[400081986,1767075053650,-184.1347424,0.00034329,30]
[400081987,1767075053659,-184.1347424,0.00034329,30]
[400081988,1767075053672,-151.0,0.00034329,31]
[400081989,1767075053682,-151.0,0.00034329,31]
[400081990,1767075053692,-154.357484,0.00034329,31]
[400081991,1767075053702,-160.0,0.00034335,10]
[400081992,1767075053712,-21201.1084,0.0003444,30]
[400081993,1767075053722,-1041.66666667,0.0003444,30]
[400081994,1767075053731,-151.0,0.0003444,31]
[400081995,1767075053743,-151.0,0.0003444,31]
[400081996,1767075053753,-151.0,0.0003444,31]
[400081997,1767075053763,-151.0,0.0003444,31]
[400081998,1767075053774,-151.0,0.0003444,31]
[400081999,1767075053785,-500.15351,0.0003444,31]
[400082000,1767075053795,-500.15351,0.0003444,31]
[400082001,1767075053805,-500.15351,0.0003444,31]
[400082002,1767075053815,-500.15351,0.0003444,31]
[400082003,1767075053825,-2348.24819284,0.00034463,2]
[400082004,1767075053835,-5000.0,0.0003452,5]
[400082005,1767075053845,-737.43404646,0.00034521,5]
[400082006,1767075053855,-350.0,0.00034521,5]
[400082007,1767075053864,-188.0,0.00034521,30]
[400082008,1767075053875,-1000.0,0.000346,16]
[400082009,1767075053885,-25891.2235066,0.0003463,2]
[400082010,1767075053894,-5000.0,0.00034633,2]
[400082011,1767075053904,-151.0,0.00034633,31]
[400082012,1767075053913,-212.855881,0.00034633,31]
[400082013,1767075053923,-151.0,0.00034633,31]
[400082014,1767075053932,-5021.1531769,0.00034634,2]
[400082015,1767075053942,-512.4222648,0.00034634,2]
[400082016,1767075053952,-151.0,0.00034634,31]
[400082017,1767075053962,-151.0,0.00034634,31]
[400082018,1767075053972,-151.0,0.00034634,31]
[400082019,1767075053982,-5000.0,0.00034649,4]
[400082020,1767075053991,-5000.0,0.00034649,7]
[400082021,1767075054002,-5000.0,0.00034649,15]
[400082022,1767075054012,-151.0,0.00034649,30]
[400082023,1767075054021,-647.06917793,0.00034649,30]
[400082024,1767075054031,-151.0,0.00034649,30]
[400082025,1767075054041,-250.0,0.00034649,30]
[400082026,1767075054050,-151.0,0.00034649,30]
[400082027,1767075054060,-414.0,0.00034649,30]
[400082028,1767075054071,-250.0,0.00034649,30]
[400082029,1767075054081,-151.0,0.00034649,30]
[400082030,1767075054091,-151.0,0.00034649,30]
[400082031,1767075054101,-250.0,0.00034649,30]
[400082032,1767075054110,-151.0,0.00034649,30]
[400082033,1767075054121,-429.318,0.00034649,30]
[400082034,1767075054131,-269.09604706,0.00034649,30]
[400082035,1767075054140,-250.0,0.00034649,30]
[400082036,1767075054150,-151.0,0.00034649,30]
[400082037,1767075054159,-151.09617948,0.00034649,30]
[400082038,1767075054169,-156.587,0.00034649,30]
[400082039,1767075054179,-250.0,0.00034649,30]
[400082040,1767075054189,-445.202766,0.00034649,30]
[400082041,1767075054198,-250.0,0.00034649,30]